[Event "Late-Titled-Tuesday-Blitz-June-18-2024"]
[Site "Chess.com"]
[Date "2024.06.18"]
[Round "11"]
[White "Barboval"]
[Black "NigelDwarf"]
[Result "1-0"]
[WhiteElo "2550"]
[BlackElo "2435"]
[TimeControl "180+1"]
[EndTime "16:02:19 PDT"]
[Termination "Barboval won by resignation"]

1. d4 {[%clk 0:03:00.9]} 1... Nf6 {[%clk 0:02:56.6]} 2. Bg5 {[%clk 0:03:00.6]}
2... c5 {[%clk 0:02:52.5]} 3. Bxf6 {[%clk 0:02:58.9]} 3... exf6 {[%clk 0:02:52]}
4. dxc5 {[%clk 0:02:57.9]} 4... Bxc5 {[%clk 0:02:51.4]} 5. e3 {[%clk 0:02:58.4]}
5... O-O {[%clk 0:02:49.3]} 6. Nf3 {[%clk 0:02:58]} 6... Nc6 {[%clk 0:02:36.3]}
7. c3 {[%clk 0:02:56.2]} 7... d5 {[%clk 0:02:34.5]} 8. Nbd2 {[%clk 0:02:55.6]}
8... Bf5 {[%clk 0:02:32.6]} 9. Be2 {[%clk 0:02:52.7]} 9... Ne5 {[%clk
0:02:29.9]} 10. O-O {[%clk 0:02:44.8]} 10... Nd3 {[%clk 0:02:16.7]} 11. b4
{[%clk 0:02:29.5]} 11... Bb6 {[%clk 0:02:13]} 12. Nh4 {[%clk 0:02:29.8]} 12...
Be4 {[%clk 0:02:04.1]} 13. Nxe4 {[%clk 0:02:30.2]} 13... dxe4 {[%clk 0:02:03.5]}
14. Bxd3 {[%clk 0:02:30.6]} 14... exd3 {[%clk 0:01:57.5]} 15. Nf5 {[%clk
0:02:30]} 15... Rc8 {[%clk 0:01:55.2]} 16. Rc1 {[%clk 0:02:26.2]} 16... a5
{[%clk 0:01:50.9]} 17. a3 {[%clk 0:02:25.9]} 17... axb4 {[%clk 0:01:49.9]} 18.
axb4 {[%clk 0:02:26.8]} 18... Qd7 {[%clk 0:01:35.8]} 19. Qg4 {[%clk 0:02:24]}
1-0

[Event "Late-Titled-Tuesday-Blitz-June-18-2024"]
[Site "Chess.com"]
[Date "2024.06.18"]
[Round "11"]
[White "Rawnsdale"]
[Black "cristiano78"]
[Result "1-0"]
[WhiteElo "2439"]
[BlackElo "2238"]
[TimeControl "180+1"]
[EndTime "16:02:25 PDT"]
[Termination "Rawnsdale won by checkmate"]

1. e4 {[%clk 0:03:00.9]} 1... c5 {[%clk 0:02:58.9]} 2. Nf3 {[%clk 0:03:00.9]}
2... d6 {[%clk 0:02:59.2]} 3. d4 {[%clk 0:03:01.1]} 3... cxd4 {[%clk 0:02:59.7]}
4. Nxd4 {[%clk 0:03:02]} 4... Nf6 {[%clk 0:03:00.2]} 5. Nc3 {[%clk 0:03:02.7]}
5... a6 {[%clk 0:02:57.9]} 6. Rg1 {[%clk 0:03:03.1]} 6... e5 {[%clk 0:02:56.3]}
7. Nb3 {[%clk 0:03:02.5]} 7... Nc6 {[%clk 0:02:56.2]} 8. g4 {[%clk 0:03:02.7]}
8... h6 {[%clk 0:02:53.5]} 9. h4 {[%clk 0:03:02.3]} 9... Be7 {[%clk 0:02:52.9]}
10. g5 {[%clk 0:03:02.4]} 10... hxg5 {[%clk 0:02:53.1]} 11. hxg5 {[%clk
0:03:03.3]} 11... Nd7 {[%clk 0:02:53.5]} 12. Be3 {[%clk 0:02:53.1]} 12... Nb6
{[%clk 0:02:48.7]} 13. g6 {[%clk 0:02:44.8]} 13... Be6 {[%clk 0:02:36.4]} 14.
Nd5 {[%clk 0:02:36.6]} 14... Bxd5 {[%clk 0:02:22.1]} 15. exd5 {[%clk 0:02:35.9]}
15... Nb8 {[%clk 0:02:19.8]} 16. gxf7+ {[%clk 0:02:34.8]} 16... Kxf7 {[%clk
0:02:19.8]} 17. Qf3+ {[%clk 0:02:33.9]} 17... Bf6 {[%clk 0:02:18.3]} 18. Bh3
{[%clk 0:02:33.5]} 18... Nc4 {[%clk 0:02:13.2]} 19. Be6+ {[%clk 0:02:32.3]}
19... Ke7 {[%clk 0:02:04.6]} 20. Rxg7+ {[%clk 0:02:29.9]} 20... Ke8 {[%clk
0:01:50.6]} 21. Rg8+ {[%clk 0:02:20.1]} 21... Rxg8 {[%clk 0:01:49.1]} 22. Qh5+
{[%clk 0:02:20.2]} 22... Ke7 {[%clk 0:01:36.2]} 23. Qf7# {[%clk 0:02:18.9]} 1-0

[Event "Late-Titled-Tuesday-Blitz-June-18-2024"]
[Site "Chess.com"]
[Date "2024.06.18"]
[Round "11"]
[White "LoonsDeKoeben"]
[Black "tgpgoat"]
[Result "0-1"]
[WhiteElo "2406"]
[BlackElo "2514"]
[TimeControl "180+1"]
[EndTime "16:02:29 PDT"]
[Termination "tgpgoat won by resignation"]

1. Nf3 {[%clk 0:03:00.9]} 1... Nf6 {[%clk 0:02:59.6]} 2. c4 {[%clk 0:03:00.1]}
2... e6 {[%clk 0:03:00.5]} 3. Nc3 {[%clk 0:02:59.4]} 3... Be7 {[%clk 0:03:01.4]}
4. e4 {[%clk 0:02:59.3]} 4... O-O {[%clk 0:03:02.3]} 5. e5 {[%clk 0:02:59.1]}
5... Ne8 {[%clk 0:03:02.3]} 6. d4 {[%clk 0:02:58.6]} 6... d6 {[%clk 0:03:02.4]}
7. Bd3 {[%clk 0:02:58]} 7... Nc6 {[%clk 0:03:00]} 8. Be3 {[%clk 0:02:35.4]} 8...
f5 {[%clk 0:02:57.3]} 9. exf6 {[%clk 0:02:33.4]} 9... Nxf6 {[%clk 0:02:57]} 10.
h3 {[%clk 0:02:30.8]} 10... e5 {[%clk 0:02:56.3]} 11. dxe5 {[%clk 0:02:27.8]}
11... Nxe5 {[%clk 0:02:57.2]} 12. Nxe5 {[%clk 0:02:27.4]} 12... dxe5 {[%clk
0:02:58.1]} 13. O-O {[%clk 0:02:06.3]} 13... Be6 {[%clk 0:02:57.4]} 14. Qc2
{[%clk 0:02:04.8]} 14... Qe8 {[%clk 0:02:56.4]} 15. Ne4 {[%clk 0:02:02.2]} 15...
Nxe4 {[%clk 0:02:54.9]} 16. Bxe4 {[%clk 0:02:03.1]} 16... Qh5 {[%clk 0:02:54.2]}
17. Bxb7 {[%clk 0:02:01.6]} 17... Rad8 {[%clk 0:02:49.7]} 18. Bd5 {[%clk
0:01:52.5]} 18... Bxd5 {[%clk 0:02:45.9]} 19. cxd5 {[%clk 0:01:53.4]} 19... Rxd5
{[%clk 0:02:45.1]} 20. Qxc7 {[%clk 0:01:45.6]} 20... Bd6 {[%clk 0:02:44.5]} 21.
Qc4 {[%clk 0:01:38.6]} 21... Qf7 {[%clk 0:02:43.3]} 22. Rfd1 {[%clk 0:01:21.8]}
22... Rxd1+ {[%clk 0:02:41.6]} 23. Rxd1 {[%clk 0:01:18.5]} 23... Qxc4 {[%clk
0:02:42.5]} 24. Rxd6 {[%clk 0:01:19]} 24... Qxa2 {[%clk 0:02:40.8]} 0-1

[Event "Late-Titled-Tuesday-Blitz-June-18-2024"]
[Site "Chess.com"]
[Date "2024.06.18"]
[Round "11"]
[White "Hirna2005"]
[Black "Bugcrusher"]
[Result "1-0"]
[WhiteElo "2300"]
[BlackElo "2387"]
[TimeControl "180+1"]
[EndTime "16:02:41 PDT"]
[Termination "Hirna2005 won by resignation"]

1. e4 {[%clk 0:03:00.9]} 1... e6 {[%clk 0:02:58.4]} 2. d4 {[%clk 0:03:00.1]}
2... d5 {[%clk 0:02:58.2]} 3. e5 {[%clk 0:03:00.3]} 3... c5 {[%clk 0:02:57.6]}
4. c3 {[%clk 0:03:00.4]} 4... Nc6 {[%clk 0:02:57.8]} 5. Be3 {[%clk 0:03:00]}
5... Nge7 {[%clk 0:02:56.8]} 6. Nf3 {[%clk 0:02:59.5]} 6... Nf5 {[%clk
0:02:52.4]} 7. Bd3 {[%clk 0:02:58.2]} 7... cxd4 {[%clk 0:02:51.1]} 8. cxd4
{[%clk 0:02:57.5]} 8... Be7 {[%clk 0:02:46.9]} 9. O-O {[%clk 0:02:56.4]} 9...
O-O {[%clk 0:02:46.4]} 10. Nc3 {[%clk 0:02:55.8]} 10... Nxe3 {[%clk 0:02:45.7]}
11. fxe3 {[%clk 0:02:55.6]} 11... f6 {[%clk 0:02:44.7]} 12. exf6 {[%clk
0:02:55.2]} 12... Bxf6 {[%clk 0:02:44]} 13. Rc1 {[%clk 0:02:55.7]} 13... Bd7
{[%clk 0:02:41.4]} 14. Qe1 {[%clk 0:02:41]} 14... Be8 {[%clk 0:02:26.5]} 15. Qg3
{[%clk 0:02:38.3]} 15... Bh5 {[%clk 0:02:22.5]} 16. Qh3 {[%clk 0:02:34.1]} 16...
Qe8 {[%clk 0:02:21.4]} 17. Nb5 {[%clk 0:02:22.3]} 17... Rd8 {[%clk 0:01:51.8]}
18. Nc7 {[%clk 0:02:20.2]} 18... Qf7 {[%clk 0:01:44.2]} 19. Nxe6 {[%clk
0:02:15.7]} 19... Rfe8 {[%clk 0:01:41.1]} 20. Nxd8 {[%clk 0:02:13.5]} 20... Rxd8
{[%clk 0:01:41.4]} 21. Bxh7+ {[%clk 0:02:06]} 21... Kxh7 {[%clk 0:01:40.3]} 22.
Ng5+ {[%clk 0:02:06.1]} 1-0

[Event "Late-Titled-Tuesday-Blitz-June-18-2024"]
[Site "Chess.com"]
[Date "2024.06.18"]
[Round "11"]
[White "nochewycandy"]
[Black "RZ0"]
[Result "0-1"]
[WhiteElo "2761"]
[BlackElo "2569"]
[TimeControl "180+1"]
[EndTime "16:03:09 PDT"]
[Termination "RZ0 won by resignation"]

1. d4 {[%clk 0:03:00.9]} 1... Nf6 {[%clk 0:02:58.5]} 2. Nc3 {[%clk 0:02:57.5]}
2... d5 {[%clk 0:02:54.5]} 3. Bf4 {[%clk 0:02:56.6]} 3... c5 {[%clk 0:02:54.1]}
4. e3 {[%clk 0:02:53.7]} 4... cxd4 {[%clk 0:02:53.7]} 5. exd4 {[%clk 0:02:54.6]}
5... a6 {[%clk 0:02:53.2]} 6. Nf3 {[%clk 0:02:54]} 6... Nc6 {[%clk 0:02:52.4]}
7. g3 {[%clk 0:02:52.7]} 7... Bg4 {[%clk 0:02:50.5]} 8. Bg2 {[%clk 0:02:51.1]}
8... e6 {[%clk 0:02:50.4]} 9. h3 {[%clk 0:02:51.3]} 9... Bxf3 {[%clk 0:02:49]}
10. Bxf3 {[%clk 0:02:52.2]} 10... Qb6 {[%clk 0:02:48]} 11. O-O {[%clk
0:02:50.8]} 11... Qxd4 {[%clk 0:02:46.6]} 12. Qe2 {[%clk 0:02:49.2]} 12... Be7
{[%clk 0:02:41.6]} 13. Rad1 {[%clk 0:02:44.7]} 13... Qb6 {[%clk 0:02:40.6]} 14.
g4 {[%clk 0:02:42.6]} 14... Nd4 {[%clk 0:02:39.7]} 15. Qd3 {[%clk 0:02:41]}
15... Nxf3+ {[%clk 0:02:39.3]} 16. Qxf3 {[%clk 0:02:41.9]} 16... O-O {[%clk
0:02:36.5]} 17. g5 {[%clk 0:02:39.7]} 17... Nd7 {[%clk 0:02:36]} 18. Rfe1 {[%clk
0:02:40.3]} 18... Bd6 {[%clk 0:02:26.9]} 19. b3 {[%clk 0:02:19.9]} 19... Bxf4
{[%clk 0:02:22.4]} 20. Qxf4 {[%clk 0:02:20.8]} 20... Rac8 {[%clk 0:02:22.7]} 21.
Na4 {[%clk 0:02:18.1]} 21... Qc7 {[%clk 0:02:21.9]} 22. Qxc7 {[%clk 0:02:14.5]}
22... Rxc7 {[%clk 0:02:21.7]} 23. c4 {[%clk 0:02:14]} 23... dxc4 {[%clk
0:02:14.2]} 24. bxc4 {[%clk 0:02:14.9]} 24... Rxc4 {[%clk 0:02:11.7]} 25. Rxd7
{[%clk 0:02:12.2]} 25... Rxa4 {[%clk 0:02:10.9]} 26. Rxb7 {[%clk 0:02:12.9]}
26... Rxa2 {[%clk 0:02:10.6]} 27. Rd1 {[%clk 0:02:06.7]} 27... Ra5 {[%clk
0:02:08.6]} 28. h4 {[%clk 0:02:05.1]} 28... Ra4 {[%clk 0:02:08.2]} 29. Rd6
{[%clk 0:02:04.7]} 29... Rxh4 {[%clk 0:02:07.1]} 30. Rxa6 {[%clk 0:02:03.7]}
30... Rg4+ {[%clk 0:02:07.3]} 31. Kf1 {[%clk 0:02:03.3]} 31... Rxg5 {[%clk
0:02:08.2]} 32. Raa7 {[%clk 0:02:03.8]} 32... Rf5 {[%clk 0:02:07.7]} 33. Kg2
{[%clk 0:02:04.1]} 33... h5 {[%clk 0:02:06.7]} 34. f3 {[%clk 0:02:04]} 34... g5
{[%clk 0:02:06.5]} 35. Kg3 {[%clk 0:02:03.6]} 35... Kg7 {[%clk 0:02:06.9]} 36.
Re7 {[%clk 0:02:02.5]} 36... Kg6 {[%clk 0:02:07]} 37. Rec7 {[%clk 0:02:03.4]}
37... Rd8 {[%clk 0:02:06.4]} 38. Rc3 {[%clk 0:02:02.3]} 38... Rd2 {[%clk
0:02:01.7]} 39. Rc8 {[%clk 0:01:58.3]} 39... h4+ {[%clk 0:02:00.2]} 0-1

[Event "Late-Titled-Tuesday-Blitz-June-18-2024"]
[Site "Chess.com"]
[Date "2024.06.18"]
[Round "11"]
[White "DeTimmerman"]
[Black "dennisodessa"]
[Result "0-1"]
[WhiteElo "2746"]
[BlackElo "2643"]
[TimeControl "180+1"]
[EndTime "16:03:39 PDT"]
[Termination "dennisodessa won by resignation"]

1. e4 {[%clk 0:03:00.2]} 1... e6 {[%clk 0:02:58]} 2. Qe2 {[%clk 0:02:57.4]} 2...
c5 {[%clk 0:02:58.1]} 3. g3 {[%clk 0:02:56.2]} 3... Nc6 {[%clk 0:02:59]} 4. c3
{[%clk 0:02:53.1]} 4... g6 {[%clk 0:02:59.9]} 5. Bg2 {[%clk 0:02:53.2]} 5... Bg7
{[%clk 0:03:00.7]} 6. f4 {[%clk 0:02:52.7]} 6... d6 {[%clk 0:03:01.6]} 7. Nf3
{[%clk 0:02:51.8]} 7... Nge7 {[%clk 0:03:02.5]} 8. O-O {[%clk 0:02:51.6]} 8...
O-O {[%clk 0:03:03.4]} 9. Na3 {[%clk 0:02:50.8]} 9... Rb8 {[%clk 0:02:50.1]} 10.
Nc2 {[%clk 0:02:50.6]} 10... e5 {[%clk 0:02:50.8]} 11. d3 {[%clk 0:02:47.7]}
11... b5 {[%clk 0:02:47.2]} 12. Ne3 {[%clk 0:02:41.1]} 12... b4 {[%clk
0:02:42.3]} 13. Bd2 {[%clk 0:02:35.7]} 13... f5 {[%clk 0:01:56.2]} 14. fxe5
{[%clk 0:02:06.5]} 14... Nxe5 {[%clk 0:01:57]} 15. Nxe5 {[%clk 0:02:00.5]} 15...
Bxe5 {[%clk 0:01:57.9]} 16. Nc4 {[%clk 0:01:54.8]} 16... Bg7 {[%clk 0:01:57.7]}
17. Bf4 {[%clk 0:01:49.1]} 17... bxc3 {[%clk 0:01:56.2]} 18. bxc3 {[%clk
0:01:40.4]} 18... Bxc3 {[%clk 0:01:57.1]} 19. Bxd6 {[%clk 0:01:28.3]} 19... Bxa1
{[%clk 0:01:44.2]} 20. Rxa1 {[%clk 0:01:27]} 20... Ba6 {[%clk 0:01:34.6]} 21.
Bxb8 {[%clk 0:01:22.6]} 21... Qd4+ {[%clk 0:01:33.4]} 0-1

[Event "Late-Titled-Tuesday-Blitz-June-18-2024"]
[Site "Chess.com"]
[Date "2024.06.18"]
[Round "11"]
[White "ToddBryant"]
[Black "Arteler"]
[Result "1-0"]
[WhiteElo "2384"]
[BlackElo "2229"]
[TimeControl "180+1"]
[EndTime "16:03:43 PDT"]
[Termination "ToddBryant won by checkmate"]

1. e4 {[%clk 0:03:00.9]} 1... e6 {[%clk 0:02:55.2]} 2. d4 {[%clk 0:03:00.8]}
2... d5 {[%clk 0:02:56.1]} 3. e5 {[%clk 0:03:01.4]} 3... c5 {[%clk 0:02:55.9]}
4. c3 {[%clk 0:03:02.1]} 4... Qb6 {[%clk 0:02:52.8]} 5. Nf3 {[%clk 0:03:02.1]}
5... Nc6 {[%clk 0:02:52.8]} 6. Bd3 {[%clk 0:03:01.9]} 6... Bd7 {[%clk
0:02:52.1]} 7. dxc5 {[%clk 0:03:00.7]} 7... Bxc5 {[%clk 0:02:46.4]} 8. O-O
{[%clk 0:03:01.6]} 8... Nh6 {[%clk 0:02:32]} 9. b4 {[%clk 0:02:55.9]} 9... Be7
{[%clk 0:02:30.4]} 10. Bxh6 {[%clk 0:02:53.4]} 10... gxh6 {[%clk 0:02:31.3]} 11.
Qe2 {[%clk 0:02:53.9]} 11... O-O-O {[%clk 0:02:24.5]} 12. a4 {[%clk 0:02:49.7]}
12... Rhg8 {[%clk 0:02:23.4]} 13. g3 {[%clk 0:02:48.6]} 13... h5 {[%clk
0:02:21.3]} 14. a5 {[%clk 0:02:43.5]} 14... Qc7 {[%clk 0:02:19.8]} 15. b5 {[%clk
0:02:43.3]} 15... Nb8 {[%clk 0:02:19.6]} 16. c4 {[%clk 0:02:38.9]} 16... b6
{[%clk 0:02:14.4]} 17. cxd5 {[%clk 0:02:28.2]} 17... exd5 {[%clk 0:02:08.9]} 18.
Nbd2 {[%clk 0:01:51.4]} 18... Bh3 {[%clk 0:02:01.9]} 19. Rfc1 {[%clk 0:01:48.1]}
19... Bc5 {[%clk 0:02:01.8]} 20. Nb3 {[%clk 0:01:43.8]} 20... Nd7 {[%clk
0:01:56.1]} 21. axb6 {[%clk 0:01:40.3]} 21... Qxb6 {[%clk 0:01:54.9]} 22. Nxc5
{[%clk 0:01:30.9]} 22... Nxc5 {[%clk 0:01:47.9]} 23. Ra6 {[%clk 0:01:31.5]}
23... Qc7 {[%clk 0:01:30.5]} 24. Rc6 {[%clk 0:01:27.1]} 24... Qxc6 {[%clk
0:01:28.5]} 25. bxc6 {[%clk 0:01:28]} 25... Nxd3 {[%clk 0:01:28]} 26. Qxd3
{[%clk 0:01:25.4]} 26... Bg4 {[%clk 0:01:28.6]} 27. Qa6+ {[%clk 0:01:20.8]}
27... Kc7 {[%clk 0:01:28.8]} 28. Qb7# {[%clk 0:01:21.7]} 1-0

[Event "Late-Titled-Tuesday-Blitz-June-18-2024"]
[Site "Chess.com"]
[Date "2024.06.18"]
[Round "11"]
[White "Inepton_Fermion"]
[Black "hoshiboshi"]
[Result "1-0"]
[WhiteElo "2401"]
[BlackElo "2256"]
[TimeControl "180+1"]
[EndTime "16:03:54 PDT"]
[Termination "Inepton_Fermion won by resignation"]

1. Nf3 {[%clk 0:02:32]} 1... Nf6 {[%clk 0:02:58.9]} 2. b3 {[%clk 0:02:31.8]}
2... g6 {[%clk 0:02:58.1]} 3. Bb2 {[%clk 0:02:32.2]} 3... Bg7 {[%clk 0:02:58.8]}
4. g3 {[%clk 0:02:33]} 4... O-O {[%clk 0:02:58.6]} 5. Bg2 {[%clk 0:02:33.3]}
5... d5 {[%clk 0:02:58.9]} 6. c4 {[%clk 0:02:33.1]} 6... c6 {[%clk 0:02:42.1]}
7. O-O {[%clk 0:02:32.1]} 7... b6 {[%clk 0:02:38.1]} 8. d4 {[%clk 0:02:31.5]}
8... Bb7 {[%clk 0:02:38]} 9. Nc3 {[%clk 0:02:31.4]} 9... Nbd7 {[%clk 0:02:37.5]}
10. Rc1 {[%clk 0:02:29.6]} 10... Re8 {[%clk 0:02:34.9]} 11. e3 {[%clk
0:02:26.9]} 11... Ne4 {[%clk 0:02:30.4]} 12. Nxe4 {[%clk 0:02:26.3]} 12... dxe4
{[%clk 0:02:31.3]} 13. Ng5 {[%clk 0:02:15.4]} 13... e5 {[%clk 0:02:11.9]} 14.
Nxe4 {[%clk 0:02:15]} 14... exd4 {[%clk 0:02:00.5]} 15. Nd6 {[%clk 0:02:13.6]}
15... Qc7 {[%clk 0:01:52.2]} 16. Nxe8 {[%clk 0:02:12.3]} 16... Rxe8 {[%clk
0:01:53.1]} 17. Bxd4 {[%clk 0:01:57.1]} 17... c5 {[%clk 0:01:49.2]} 18. Bxg7
{[%clk 0:01:55.4]} 18... Kxg7 {[%clk 0:01:49.1]} 19. Bxb7 {[%clk 0:01:54.5]}
19... Qxb7 {[%clk 0:01:49]} 20. Qd5 {[%clk 0:01:54.6]} 20... Qxd5 {[%clk
0:01:43.2]} 21. cxd5 {[%clk 0:01:55.5]} 21... Ne5 {[%clk 0:01:38.5]} 22. Rfd1
{[%clk 0:01:52.7]} 22... Kf6 {[%clk 0:01:35.7]} 23. h3 {[%clk 0:01:44.6]} 23...
Ke7 {[%clk 0:01:34.1]} 24. f4 {[%clk 0:01:38]} 24... Nd7 {[%clk 0:01:31.9]} 25.
e4 {[%clk 0:01:36.5]} 25... f6 {[%clk 0:01:31.4]} 26. Kf2 {[%clk 0:01:36.3]}
26... Kd6 {[%clk 0:01:31.7]} 27. Kf3 {[%clk 0:01:36.5]} 27... b5 {[%clk
0:01:24.5]} 28. a4 {[%clk 0:01:35.2]} 28... a6 {[%clk 0:01:22.1]} 29. axb5
{[%clk 0:01:34.7]} 29... axb5 {[%clk 0:01:22.6]} 30. Ra1 {[%clk 0:01:35.3]}
30... c4 {[%clk 0:01:22.7]} 31. bxc4 {[%clk 0:01:32.9]} 31... bxc4 {[%clk
0:01:22.9]} 32. Ra6+ {[%clk 0:01:33.4]} 32... Kc5 {[%clk 0:01:23.1]} 33. Rc6+
{[%clk 0:01:33.1]} 33... Kb5 {[%clk 0:01:20]} 34. Rb1+ {[%clk 0:01:32.2]} 1-0

[Event "Late-Titled-Tuesday-Blitz-June-18-2024"]
[Site "Chess.com"]
[Date "2024.06.18"]
[Round "11"]
[White "Commando_Droid"]
[Black "simaopdias"]
[Result "1-0"]
[WhiteElo "2699"]
[BlackElo "2195"]
[TimeControl "180+1"]
[EndTime "16:04:10 PDT"]
[Termination "Commando_Droid won by resignation"]

1. d4 {[%clk 0:03:00.9]} 1... Nf6 {[%clk 0:02:52.5]} 2. c4 {[%clk 0:03:00.7]}
2... e6 {[%clk 0:02:51.8]} 3. Nf3 {[%clk 0:02:58.8]} 3... b6 {[%clk 0:02:51.4]}
4. g3 {[%clk 0:02:58.1]} 4... Bb7 {[%clk 0:02:51.4]} 5. Bg2 {[%clk 0:02:57.8]}
5... Bb4+ {[%clk 0:02:50.8]} 6. Bd2 {[%clk 0:02:57.2]} 6... Bxd2+ {[%clk
0:02:49.1]} 7. Qxd2 {[%clk 0:02:58.1]} 7... d5 {[%clk 0:02:50]} 8. O-O {[%clk
0:02:57.3]} 8... dxc4 {[%clk 0:02:49]} 9. Na3 {[%clk 0:02:56.9]} 9... Nbd7
{[%clk 0:02:48.2]} 10. Nxc4 {[%clk 0:02:56.1]} 10... O-O {[%clk 0:02:48.6]} 11.
Rac1 {[%clk 0:02:55.3]} 11... c5 {[%clk 0:02:48]} 12. Nd6 {[%clk 0:02:54.7]}
12... Bd5 {[%clk 0:02:45.4]} 13. b3 {[%clk 0:02:51.1]} 13... cxd4 {[%clk
0:02:45.3]} 14. Qxd4 {[%clk 0:02:50.6]} 14... Nc5 {[%clk 0:02:42.5]} 15. Nc4
{[%clk 0:02:49.8]} 15... Rc8 {[%clk 0:02:37.9]} 16. Ne3 {[%clk 0:02:49.4]} 16...
Bb7 {[%clk 0:02:32.3]} 17. Rfd1 {[%clk 0:02:48.1]} 17... Qxd4 {[%clk 0:02:25.9]}
18. Nxd4 {[%clk 0:02:49]} 18... Rfd8 {[%clk 0:02:26.7]} 19. b4 {[%clk
0:02:35.6]} 19... Bxg2 {[%clk 0:02:26]} 20. Kxg2 {[%clk 0:02:32]} 20... Nce4
{[%clk 0:02:23.3]} 21. Nc6 {[%clk 0:02:29.1]} 21... Rxd1 {[%clk 0:01:17.5]} 22.
Ne7+ {[%clk 0:02:27.8]} 22... Kf8 {[%clk 0:01:17.8]} 23. Rxc8+ {[%clk
0:02:28.1]} 23... Kxe7 {[%clk 0:01:17.8]} 24. Nxd1 {[%clk 0:02:27.7]} 24... Nd5
{[%clk 0:00:51.4]} 25. Ra8 {[%clk 0:02:06.2]} 25... Nxb4 {[%clk 0:00:48.2]} 26.
Rxa7+ {[%clk 0:02:06.1]} 26... Ke8 {[%clk 0:00:46.5]} 27. Ne3 {[%clk 0:02:05.3]}
27... Nc3 {[%clk 0:00:42.3]} 28. a3 {[%clk 0:02:04.8]} 28... Nc6 {[%clk
0:00:39]} 29. Rc7 {[%clk 0:02:03.8]} 1-0

[Event "Late-Titled-Tuesday-Blitz-June-18-2024"]
[Site "Chess.com"]
[Date "2024.06.18"]
[Round "11"]
[White "xakevicius91"]
[Black "ReadySkate"]
[Result "0-1"]
[WhiteElo "2657"]
[BlackElo "2789"]
[TimeControl "180+1"]
[EndTime "16:04:12 PDT"]
[Termination "ReadySkate won by checkmate"]

1. e4 {[%clk 0:03:00.9]} 1... c5 {[%clk 0:02:59.7]} 2. Nf3 {[%clk 0:03:01.2]}
2... e6 {[%clk 0:02:59.8]} 3. b3 {[%clk 0:03:01.1]} 3... d5 {[%clk 0:02:59.7]}
4. Bb5+ {[%clk 0:02:59.9]} 4... Bd7 {[%clk 0:02:59.5]} 5. Bxd7+ {[%clk
0:02:59.1]} 5... Nxd7 {[%clk 0:03:00.4]} 6. exd5 {[%clk 0:02:59.2]} 6... exd5
{[%clk 0:03:00.8]} 7. O-O {[%clk 0:02:59]} 7... Ngf6 {[%clk 0:03:00.5]} 8. Re1+
{[%clk 0:02:57]} 8... Be7 {[%clk 0:03:00.4]} 9. d4 {[%clk 0:02:57.4]} 9... O-O
{[%clk 0:03:00.2]} 10. Bb2 {[%clk 0:02:53.4]} 10... cxd4 {[%clk 0:02:58.8]} 11.
Nxd4 {[%clk 0:02:53.1]} 11... Bc5 {[%clk 0:02:58.3]} 12. Nd2 {[%clk 0:02:52.6]}
12... Qb6 {[%clk 0:02:56.3]} 13. N2f3 {[%clk 0:02:51.5]} 13... Ne4 {[%clk
0:02:56.1]} 14. Qd3 {[%clk 0:02:48.5]} 14... Ndf6 {[%clk 0:02:55.6]} 15. h3
{[%clk 0:02:47.6]} 15... Rac8 {[%clk 0:02:54.9]} 16. c3 {[%clk 0:02:36.7]} 16...
Rfe8 {[%clk 0:02:47.4]} 17. Re2 {[%clk 0:02:35.4]} 17... Nh5 {[%clk 0:02:47.4]}
18. g3 {[%clk 0:02:30.9]} 18... Qg6 {[%clk 0:02:46.6]} 19. Nh4 {[%clk
0:02:24.3]} 19... Qg5 {[%clk 0:02:34.6]} 20. Nhf3 {[%clk 0:02:18.5]} 20... Qh6
{[%clk 0:02:31.4]} 21. c4 {[%clk 0:02:05.6]} 21... Nhxg3 {[%clk 0:02:12.3]} 22.
fxg3 {[%clk 0:02:03.5]} 22... Nxg3 {[%clk 0:02:12.9]} 23. Rxe8+ {[%clk
0:01:23.6]} 23... Rxe8 {[%clk 0:02:13.8]} 24. Kg2 {[%clk 0:01:24.1]} 24... Nh5
{[%clk 0:02:12.5]} 25. Qf5 {[%clk 0:01:09.3]} 25... Nf4+ {[%clk 0:02:08.4]} 26.
Kg3 {[%clk 0:01:08.8]} 26... Bd6 {[%clk 0:02:02.6]} 27. Kf2 {[%clk 0:01:01.9]}
27... Nxh3+ {[%clk 0:02:01]} 28. Kf1 {[%clk 0:00:56.1]} 28... Nf4 {[%clk
0:02:00.5]} 29. Qg4 {[%clk 0:00:38.9]} 29... Qh1+ {[%clk 0:01:54.1]} 30. Qg1
{[%clk 0:00:38.8]} 30... Qh3+ {[%clk 0:01:53]} 31. Kf2 {[%clk 0:00:37.4]} 31...
Nd3# {[%clk 0:01:52]} 0-1

[Event "Late-Titled-Tuesday-Blitz-June-18-2024"]
[Site "Chess.com"]
[Date "2024.06.18"]
[Round "11"]
[White "Matalon"]
[Black "urano56"]
[Result "1-0"]
[WhiteElo "2490"]
[BlackElo "2402"]
[TimeControl "180+1"]
[EndTime "16:04:13 PDT"]
[Termination "Matalon won by resignation"]

1. e4 {[%clk 0:02:03.1]} 1... c5 {[%clk 0:02:57.9]} 2. Nf3 {[%clk 0:02:02.6]}
2... d6 {[%clk 0:02:58.4]} 3. d4 {[%clk 0:02:02.5]} 3... cxd4 {[%clk 0:02:59.3]}
4. Nxd4 {[%clk 0:02:02.9]} 4... Nf6 {[%clk 0:03:00]} 5. Nc3 {[%clk 0:02:03]}
5... a6 {[%clk 0:03:00.7]} 6. Bg5 {[%clk 0:02:02.8]} 6... Nbd7 {[%clk 0:02:59]}
7. f4 {[%clk 0:02:02.8]} 7... Qc7 {[%clk 0:02:58.6]} 8. Qf3 {[%clk 0:02:02.7]}
8... g6 {[%clk 0:02:56.7]} 9. O-O-O {[%clk 0:02:01.4]} 9... Bg7 {[%clk 0:02:57]}
10. g4 {[%clk 0:02:01.5]} 10... O-O {[%clk 0:02:56]} 11. h4 {[%clk 0:02:00.6]}
11... b5 {[%clk 0:02:54.8]} 12. h5 {[%clk 0:01:59]} 12... Bb7 {[%clk 0:02:51.9]}
13. hxg6 {[%clk 0:01:58.5]} 13... fxg6 {[%clk 0:02:42.3]} 14. Ne6 {[%clk
0:01:57.7]} 14... Qa5 {[%clk 0:02:37.9]} 15. Nxf8 {[%clk 0:01:56.9]} 15... Rxf8
{[%clk 0:02:35.4]} 16. Kb1 {[%clk 0:01:55.1]} 16... b4 {[%clk 0:02:35.1]} 17.
Nd5 {[%clk 0:01:55.2]} 17... Nxd5 {[%clk 0:02:12.8]} 18. Bc4 {[%clk 0:01:54.8]}
18... e6 {[%clk 0:02:08.7]} 19. exd5 {[%clk 0:01:51.7]} 19... Nb6 {[%clk
0:01:36.2]} 20. Bb3 {[%clk 0:01:50.5]} 20... Bxd5 {[%clk 0:01:32.6]} 21. Bxd5
{[%clk 0:01:46.1]} 21... Nxd5 {[%clk 0:01:31.9]} 22. Qh3 {[%clk 0:01:44.3]}
22... Kf7 {[%clk 0:01:16.8]} 23. f5 {[%clk 0:01:41.4]} 23... exf5 {[%clk
0:00:37.9]} 24. Qb3 {[%clk 0:01:39.6]} 1-0